bitfinex/quotes_BTCUSD_20241226
["timestamp","ask_amount","ask_price","bid_price","bid_amount"]
[1735186043307,0.162156,98670.0,98668.0,0.00397379]
[1735186043483,0.162156,98670.0,98593.0,0.1]
[1735186043484,0.162193,98648.0,98616.0,0.162245]
[1735186043708,0.1,98646.0,98617.0,0.10398632]
[1735186043914,0.1,98641.0,98617.0,0.11273845]
[1735186044114,0.00101375,98640.0,98617.0,0.1096203]
[1735186044322,0.162207,98639.0,98617.0,0.1096203]
[1735186044551,0.1,98641.0,98617.0,0.1096203]
[1735186044552,0.0762,98637.0,98617.0,0.00563398]
[1735186044731,0.00101375,98636.0,98618.0,0.00101389]
[1735186045146,0.0479,98638.0,98620.0,0.10626482]
[1735186045348,0.162202,98643.0,98620.0,0.10626482]
[1735186045349,0.238388,98651.0,98622.0,0.162235]
[1735186045556,0.0762,98651.0,98628.0,0.10626482]
[1735186045761,0.0479,98656.0,98629.0,0.0010137]
[1735186045959,0.001,98636.0,98629.0,0.00561964]
[1735186046173,0.001,98636.0,98630.0,0.16323574]
[1735186046395,0.001,98636.0,98631.0,0.00561703]
[1735186046613,0.001,98636.0,98634.0,0.1]
[1735186046824,0.001,98636.0,98633.0,0.162217]
[1735186046825,0.001,98636.0,98635.0,0.52282575]
[1735186047049,0.001,98636.0,98635.0,0.52181213]
[1735186047241,0.1,98660.0,98635.0,0.00561181]
[1735186047476,0.004,98656.0,98636.0,0.00101372]
[1735186047653,0.162205,98641.0,98617.0,0.00101384]
[1735186047855,0.162205,98641.0,98620.0,0.10626482]
[1735186048106,0.162207,98639.0,98621.0,0.00101384]
[1735186048279,0.162207,98639.0,98621.0,0.00670209]
[1735186048485,0.16221,98637.0,98621.0,0.00101384]
[1735186048798,0.00101375,98638.0,98635.0,8.58e-05]
[1735186049002,0.001,98636.0,98635.0,0.0030858]
[1735186049317,0.00101375,98638.0,98635.0,8.58e-05]
[1735186049549,0.001,98637.0,98635.0,8.58e-05]
[1735186050193,0.001,98636.0,98635.0,0.0030858]
[1735186050410,0.001,98636.0,98635.0,8.58e-05]
[1735186050617,0.001,98636.0,98635.0,0.0057558]
[1735186050913,0.001,98636.0,98635.0,0.0030858]
[1735186051378,0.001,98636.0,98635.0,0.00676375]
[1735186051594,0.003,98636.0,98635.0,0.0010858]
[1735186051816,0.003,98636.0,98635.0,0.21075007]
[1735186052036,0.001,98636.0,98635.0,0.22807212]
[1735186052254,0.001,98636.0,98635.0,0.23374583]
[1735186052477,0.08936889,98672.0,98642.0,0.1]
[1735186052696,0.08936889,98672.0,98636.0,0.185212]
[1735186052697,0.08936889,98672.0,98654.0,0.162182]
[1735186052922,0.08936889,98672.0,98655.0,0.10499976]
[1735186053136,0.08936889,98672.0,98655.0,0.11064741]
[1735186053342,0.1,98683.0,98656.0,0.162179]
[1735186053343,0.0479,98678.0,98656.0,0.162179]
[1735186053559,0.0479,98678.0,98657.0,0.00101343]
[1735186053800,0.0479,98678.0,98658.0,0.00101343]
[1735186054015,0.007,98672.0,98658.0,0.00101343]
[1735186054232,0.162148,98675.0,98659.0,0.00564244]
[1735186054449,0.00101375,98674.0,98659.0,0.00564244]
[1735186054677,0.00101375,98674.0,98657.0,0.0010135]
[1735186054893,0.162151,98673.0,98657.0,0.0010135]
[1735186055104,0.00101375,98672.0,98646.0,0.0010135]
[1735186055296,0.162155,98671.0,98658.0,0.00564374]
[1735186055439,0.162158,98669.0,98645.0,0.00011599]
[1735186055669,0.162175,98659.0,98646.0,0.00565938]
[1735186055873,0.162175,98659.0,98645.0,0.00011599]
[1735186056480,0.00101375,98658.0,98645.0,0.00011599]
[1735186057120,0.0762,98659.0,98645.0,0.00011599]
[1735186057322,0.0762,98659.0,98645.0,0.00311599]
[1735186057536,0.0762,98659.0,98645.0,0.00011599]
[1735186058382,0.0772,98659.0,98645.0,0.00011599]
[1735186058808,0.001,98658.0,98645.0,0.00011599]
[1735186059215,0.07821375,98659.0,98645.0,0.00011599]
[1735186059460,0.08221375,98659.0,98645.0,0.00011599]
[1735186059674,0.07821375,98659.0,98645.0,0.00011599]
[1735186059888,0.16318975,98658.0,98645.0,0.00011599]
[1735186060072,0.16618975,98658.0,98645.0,0.00011599]
[1735186060297,0.00101375,98658.0,98645.0,0.00011599]
[1735186061190,0.001,98658.0,98645.0,0.00011599]
[1735186061640,0.001,98658.0,98646.0,0.00565186]
[1735186062317,0.004,98658.0,98645.0,0.00112961]
[1735186062523,0.001,98658.0,98645.0,0.00011599]
[1735186062755,0.004,98658.0,98645.0,0.00011599]
[1735186063454,0.003,98658.0,98645.0,0.00112956]
[1735186063656,0.001,98658.0,98646.0,0.00101357]
[1735186063874,0.004,98658.0,98647.0,0.00565056]
[1735186064101,0.003,98658.0,98651.0,0.162187]
[1735186064237,0.003,98658.0,98652.0,0.10398632]
[1735186064436,0.003,98658.0,98653.0,0.16782674]
[1735186064437,0.004,98658.0,98653.0,0.16782674]
[1735186064658,0.004,98658.0,98654.0,0.10499983]
[1735186064864,0.003,98658.0,98655.0,0.00564013]
[1735186065070,0.08936889,98660.0,98655.0,0.00564013]
[1735186065276,0.08936889,98660.0,98656.0,0.162179]
[1735186065571,0.001,98658.0,98656.0,0.16319251]
[1735186065801,0.0001716,98666.0,98657.0,0.00563753]
[1735186066055,0.0001716,98666.0,98658.0,0.00101347]
[1735186066262,0.0001716,98666.0,98659.0,0.00101347]
[1735186066470,0.0001716,98666.0,98659.0,0.00664839]
[1735186066642,0.0001716,98666.0,98659.0,0.00101347]
[1735186066887,0.0001716,98666.0,98660.0,0.42833232]
[1735186067094,0.0001716,98666.0,98662.0,0.162169]
[1735186067300,0.0001716,98666.0,98661.0,0.0010134]
[1735186067301,0.0031716,98666.0,98664.0,0.162166]
[1735186067508,0.0031716,98666.0,98665.0,0.0010134]
[1735186067727,0.0031716,98666.0,98665.0,0.0066184]
[1735186067937,0.0031716,98666.0,98665.0,0.21060472]
[1735186068152,0.0031716,98666.0,98665.0,0.24399132]
[1735186068576,0.0001716,98666.0,98665.0,0.24399132]
[1735186068801,0.0001716,98666.0,98665.0,0.24599132]
[1735186069431,0.0011716,98666.0,98665.0,0.24599132]
[1735186070087,0.0011716,98666.0,98665.0,0.24399132]
[1735186070293,0.0021716,98666.0,98665.0,0.24899132]
[1735186074389,0.0021716,98666.0,98665.0,0.11459132]
[1735186075054,0.0021716,98666.0,98665.0,0.11560462]
[1735186075706,0.0011716,98666.0,98665.0,0.11560462]
[1735186075842,0.0021716,98666.0,98665.0,0.11060462]
[1735186076039,0.0011716,98666.0,98665.0,0.11060462]
[1735186076300,0.0021716,98666.0,98665.0,0.11460462]
[1735186076536,0.0031716,98666.0,98665.0,0.11460462]
[1735186076738,0.0021716,98666.0,98665.0,0.11060462]
[1735186077165,0.0031716,98666.0,98665.0,0.11460462]
[1735186079213,0.0011716,98666.0,98665.0,0.11460462]
[1735186079421,0.0011716,98666.0,98665.0,0.11060462]
[1735186079669,0.0021716,98666.0,98665.0,0.11460462]
[1735186079879,0.0011716,98666.0,98665.0,0.11460462]
[1735186080021,0.0001716,98666.0,98665.0,0.11060462]
[1735186080435,0.0001716,98666.0,98665.0,0.11460462]
[1735186080633,0.0001716,98666.0,98665.0,0.23760462]
[1735186080844,0.0001716,98666.0,98665.0,0.38659132]
[1735186081513,0.0011716,98666.0,98665.0,0.38659132]
[1735186081947,0.0001716,98666.0,98665.0,0.38259132]
[1735186082150,0.0011716,98666.0,98665.0,0.38659132]
[1735186082357,0.0011716,98666.0,98665.0,0.26359132]
[1735186082766,0.0021716,98666.0,98665.0,0.25959132]
[1735186082967,0.0011716,98666.0,98665.0,0.26459132]
[1735186083175,0.0011716,98666.0,98665.0,0.38765932]
[1735186083369,0.0021716,98666.0,98665.0,0.38765932]
[1735186085066,0.0021716,98666.0,98665.0,0.26465932]
[1735186085304,0.0021716,98666.0,98665.0,0.11465932]
[1735186085522,0.0021716,98666.0,98665.0,0.11567265]
[1735186085688,0.0021716,98666.0,98665.0,0.11465932]
[1735186087093,0.0021716,98666.0,98665.0,0.010673]
[1735186087094,0.0802716,98666.0,98665.0,0.010673]
[1735186087309,0.0802716,98666.0,98665.0,0.01339702]
[1735186087732,0.0802716,98666.0,98665.0,0.005068]
[1735186088238,0.0782716,98666.0,98665.0,0.005068]
[1735186088450,0.0792716,98666.0,98665.0,0.005068]
[1735186088748,0.0792716,98666.0,98665.0,6.8e-05]
[1735186088958,0.0802716,98666.0,98665.0,0.005068]
[1735186089378,0.0792716,98666.0,98665.0,6.8e-05]
[1735186089823,0.0792716,98666.0,98665.0,0.10705432]
[1735186089824,0.0011716,98666.0,98665.0,0.10705432]
[1735186090034,0.0011716,98666.0,98665.0,0.10806768]
[1735186090215,0.0011716,98666.0,98665.0,0.11643592]
[1735186091090,0.0011716,98666.0,98665.0,0.38943592]
[1735186091273,0.13384692,98697.0,98690.0,0.162123]
[1735186091527,0.13384692,98697.0,98691.0,0.00832672]
[1735186091739,0.0822,98702.0,98699.0,0.162108]
[1735186092161,0.0822,98702.0,98700.0,0.00830411]
[1735186092581,0.08235529,98702.0,98700.0,0.00830411]
[1735186093217,0.08235529,98702.0,98700.0,0.01130411]
[1735186093632,0.08235529,98702.0,98700.0,0.003]
[1735186094024,0.08335529,98702.0,98701.0,0.00825319]
[1735186094226,0.00115529,98702.0,98701.0,0.00825319]
[1735186094388,0.00115529,98702.0,98701.0,0.21325256]
[1735186094597,0.00215529,98702.0,98701.0,0.21223951]
[1735186094998,0.00015529,98702.0,98701.0,0.21223951]
[1735186095212,0.00115529,98702.0,98701.0,0.21923951]
[1735186096049,0.00115529,98702.0,98701.0,0.22223951]
[1735186096287,0.00115529,98702.0,98701.0,0.24523951]
[1735186096479,0.00115529,98702.0,98701.0,0.14523951]
[1735186096702,0.00132689,98702.0,98701.0,0.23203787]
[1735186097144,0.00132689,98702.0,98701.0,0.25503787]
[1735186098226,0.00132689,98702.0,98701.0,0.23203787]
[1735186098894,0.00132689,98702.0,98701.0,0.25503787]
[1735186099774,0.00132689,98702.0,98701.0,0.42519607]
[1735186099975,0.00132689,98702.0,98701.0,0.42219607]
[1735186100205,0.00232689,98702.0,98701.0,0.42819607]
[1735186100410,0.00232689,98702.0,98701.0,0.42119607]
[1735186100622,0.00032689,98702.0,98701.0,0.41519607]
[1735186100820,0.00032689,98702.0,98701.0,0.42219607]
[1735186100821,0.00132689,98702.0,98701.0,0.42219607]
[1735186100955,0.00232689,98702.0,98701.0,0.42119607]
[1735186101356,0.00332689,98702.0,98701.0,0.42819607]
[1735186102368,0.00332689,98702.0,98701.0,0.38503787]
[1735186102528,0.00332689,98702.0,98701.0,0.28503787]
[1735186102962,0.05092689,98702.0,98701.0,0.02125319]
[1735186103375,0.05092689,98702.0,98701.0,0.013]
[1735186103593,0.04992689,98702.0,98701.0,0.007]
[1735186104067,0.04792689,98702.0,98701.0,0.005]
[1735186104254,0.04792689,98702.0,98701.0,0.009]
[1735186104460,0.04792689,98702.0,98701.0,0.004]
[1735186106235,0.04792689,98702.0,98701.0,0.01210524]
[1735186106393,0.04792689,98702.0,98701.0,0.006]
[1735186106601,0.04792689,98702.0,98701.0,0.01010524]
[1735186106805,0.04792689,98702.0,98701.0,0.006]
[1735186107151,0.04792689,98702.0,98698.0,0.00101307]
[1735186107312,0.04792689,98702.0,98701.0,0.01010524]
[1735186107513,0.04792689,98702.0,98701.0,0.002]
[1735186107711,0.04792689,98702.0,98701.0,0.01410524]
[1735186107953,0.00032689,98702.0,98701.0,0.006]
[1735186108159,0.00032689,98702.0,98701.0,0.01010524]
[1735186108361,0.00032689,98702.0,98701.0,0.10699937]
[1735186108541,0.00032689,98702.0,98701.0,0.11510461]
[1735186108957,0.00032689,98702.0,98701.0,0.24773968]
[1735186109159,0.00032689,98702.0,98701.0,0.24672663]
[1735186109355,0.00032689,98702.0,98701.0,0.24472663]
[1735186109562,0.00032689,98702.0,98701.0,0.24972663]
[1735186109963,0.00032689,98702.0,98701.0,0.25272663]
[1735186110188,0.00032689,98702.0,98701.0,0.24772663]
[1735186110400,0.00132689,98702.0,98701.0,0.25072663]
[1735186110601,0.00232689,98702.0,98701.0,0.25972663]
[1735186113187,0.00232689,98702.0,98701.0,0.13672663]
[1735186114273,0.00132689,98702.0,98701.0,0.13072663]
[1735186114483,0.00032689,98702.0,98701.0,0.12172663]
[1735186114668,0.00132689,98702.0,98701.0,0.12872663]
[1735186115256,0.00132689,98702.0,98701.0,0.02474031]
[1735186115486,0.00132689,98702.0,98701.0,0.01510524]
[1735186115672,0.00132689,98702.0,98701.0,0.007]
[1735186116040,0.00132689,98702.0,98701.0,0.011]
[1735186117044,0.00132689,98702.0,98701.0,0.007]
[1735186117469,0.00032689,98702.0,98701.0,0.003]
[1735186117703,0.00032689,98702.0,98701.0,0.006]
[1735186117910,0.00032689,98702.0,98700.0,0.01002224]
[1735186118111,0.00032689,98702.0,98692.0,0.00101309]
[1735186118310,0.00032689,98702.0,98693.0,0.10398632]
[1735186118505,0.00032689,98702.0,98694.0,0.16313009]
[1735186118780,0.00032689,98702.0,98694.0,0.10499941]
[1735186118990,0.00032689,98702.0,98695.0,0.00761735]
[1735186119548,0.00032689,98702.0,98701.0,0.003]
[1735186119967,0.00032689,98702.0,98692.0,0.00101313]
[1735186120166,0.00032689,98702.0,98695.0,0.003]
[1735186120375,0.00032689,98702.0,98701.0,0.005]
[1735186120786,0.00032689,98702.0,98688.0,0.00101313]
[1735186120992,0.00032689,98702.0,98701.0,0.005]
[1735186121320,0.00032689,98702.0,98701.0,0.002]
[1735186121527,0.00032689,98702.0,98701.0,0.006]
[1735186122578,0.00032689,98702.0,98701.0,0.004]
[1735186122814,0.00032689,98702.0,98690.0,0.00101313]
[1735186123021,0.00032689,98702.0,98701.0,0.004]
[1735186123541,0.00032689,98702.0,98701.0,0.006]
[1735186123999,0.00032689,98702.0,98701.0,0.004]
[1735186124196,0.00032689,98702.0,98701.0,0.006]
[1735186125055,0.00528689,98702.0,98701.0,0.006]
[1735186126440,0.00528689,98702.0,98701.0,0.10998632]
[1735186126648,0.00528689,98702.0,98701.0,0.14163013]
[1735186127097,0.00528689,98702.0,98701.0,0.24163013]
[1735186127299,0.00528689,98702.0,98701.0,0.238617]
[1735186127517,0.00528689,98702.0,98701.0,0.388617]
[1735186127720,0.00528689,98702.0,98701.0,0.391617]
[1735186127930,0.00528689,98702.0,98701.0,0.387617]
[1735186128134,0.00628689,98702.0,98701.0,0.394617]
[1735186128539,0.00628689,98702.0,98701.0,0.271617]
[1735186128755,0.00628689,98702.0,98701.0,0.29147745]
[1735186128973,0.00628689,98702.0,98701.0,0.28847745]
[1735186129182,0.00628689,98702.0,98701.0,0.29147745]
[1735186129624,0.00528689,98702.0,98701.0,0.28147745]
[1735186129849,0.00628689,98702.0,98701.0,0.13747745]
[1735186130069,0.00628689,98702.0,98701.0,0.114617]
[1735186130273,0.08268689,98702.0,98701.0,0.11562994]
[1735186130491,0.08268689,98702.0,98701.0,0.117617]
[1735186130715,0.08168689,98702.0,98701.0,0.114617]
[1735186130923,0.08168689,98702.0,98701.0,0.120617]
[1735186131130,0.08168689,98702.0,98701.0,0.114617]
[1735186131557,0.08268689,98702.0,98701.0,0.122617]
[1735186131996,0.08268689,98702.0,98701.0,0.119617]
[1735186132206,0.08268689,98702.0,98701.0,0.123617]
[1735186132423,0.08268689,98702.0,98701.0,0.01963068]
[1735186132836,0.08268689,98702.0,98701.0,0.012]
[1735186133484,0.08268689,98702.0,98701.0,0.01999336]
[1735186135812,0.08268689,98702.0,98701.0,0.12397968]
[1735186136190,0.0001718,98714.0,98702.0,0.424208]
[1735186136395,0.0001718,98714.0,98713.0,0.162086]
[1735186136604,0.0001718,98714.0,98713.0,0.29008512]
[1735186136808,0.0001718,98714.0,98713.0,0.2970357]
[1735186137639,0.0011718,98714.0,98713.0,0.3060357]
[1735186138658,0.0011718,98714.0,98713.0,0.2830357]
[1735186138861,0.0001718,98714.0,98713.0,0.2740357]
[1735186139061,0.0001718,98714.0,98713.0,0.2927728]
[1735186139290,0.0001718,98714.0,98713.0,0.2837728]
[1735186139723,0.0001718,98714.0,98713.0,0.2877728]
[1735186140154,0.0001718,98714.0,98713.0,0.2967728]
[1735186140360,0.0001718,98714.0,98713.0,0.2927728]
[1735186140565,0.0001718,98714.0,98713.0,0.2877728]
[1735186140779,0.0001718,98714.0,98713.0,0.3107728]
[1735186141191,0.0001718,98714.0,98713.0,0.3197728]
[1735186141613,0.0001718,98714.0,98713.0,0.5697728]
[1735186141827,0.0478,98742.0,98713.0,0.5697728]
[1735186141828,0.0795,98739.0,98720.0,0.023]
[1735186142094,0.0795,98739.0,98736.0,0.162048]
[1735186142294,0.0795,98739.0,98738.0,0.162045]
[1735186142647,0.0795,98739.0,98738.0,0.16985313]
[1735186142846,0.00052033,98742.0,98738.0,0.16985313]
[1735186143054,0.00052033,98742.0,98739.0,0.26704195]
[1735186143252,0.00052033,98742.0,98741.0,0.16204]
[1735186143473,0.00052033,98742.0,98741.0,0.28902632]
[1735186143813,0.00052033,98742.0,98741.0,0.29678976]
[1735186144386,0.00052033,98742.0,98741.0,0.30078976]
[1735186145592,0.00052033,98742.0,98741.0,0.12145386]
[1735186146052,0.00052033,98742.0,98741.0,0.02646754]
[1735186146264,0.00052033,98742.0,98741.0,0.02846754]
[1735186146668,0.00052033,98742.0,98741.0,0.02646754]
[1735186147133,0.00052033,98742.0,98741.0,0.03046754]
[1735186147364,0.00052033,98742.0,98741.0,0.02146754]
[1735186147733,0.00052033,98742.0,98741.0,0.02646754]
[1735186148371,0.00052033,98742.0,98741.0,0.02246754]
[1735186148723,0.00052033,98742.0,98741.0,0.02446754]
[1735186148924,0.00052033,98742.0,98741.0,0.12946652]
[1735186149752,0.00052033,98742.0,98741.0,0.02446754]
[1735186149951,0.00052033,98742.0,98741.0,0.02548017]
[1735186150909,0.00052033,98742.0,98741.0,0.12946649]
[1735186155070,0.00052033,98742.0,98741.0,0.40246649]
[1735186155315,0.0497,98772.0,98764.0,0.162002]
[1735186155561,0.0497,98772.0,98764.0,0.26700068]
[1735186155799,0.00022379,98765.0,98764.0,0.44667234]
[1735186156049,0.00022379,98765.0,98764.0,0.54667234]
[1735186156265,0.0771,98787.0,98768.0,0.023]
[1735186156434,0.0771,98787.0,98768.0,0.12799854]
[1735186156647,0.0771,98787.0,98768.0,0.13586927]
[1735186157726,0.0771,98787.0,98768.0,0.16541925]
[1735186157931,0.0771,98787.0,98768.0,0.15641925]
[1735186158305,0.0771,98787.0,98768.0,0.16541925]
[1735186159329,0.0771,98787.0,98768.0,0.14486927]
[1735186159532,0.0771,98787.0,98768.0,0.14886927]
[1735186162829,0.0771,98787.0,98768.0,0.39886927]
[1735186163046,0.0001,98789.0,98768.0,0.39785705]
[1735186164082,0.0001,98789.0,98788.0,0.184962]
[1735186164294,0.00015196,98789.0,98788.0,0.29771407]
[1735186164494,0.00015196,98789.0,98788.0,0.29670207]
[1735186164721,0.00015196,98789.0,98788.0,0.54670207]
[1735186165203,0.00015196,98789.0,98788.0,0.55770207]
[1735186165845,0.00015196,98789.0,98788.0,0.57798553]
[1735186167376,0.00015196,98789.0,98788.0,0.48816513]
[1735186168514,0.00032336,98789.0,98788.0,0.48816513]
[1735186173247,0.00032336,98789.0,98788.0,0.46788167]
[1735186173674,0.08052336,98789.0,98788.0,0.46788167]
[1735186173874,0.08052336,98789.0,98788.0,0.31788167]
[1735186174454,0.00032336,98789.0,98788.0,0.31788167]
[1735186174844,0.00032336,98789.0,98788.0,0.29488167]
[1735186177289,0.04942336,98789.0,98788.0,0.29488167]
[1735186177543,0.04942336,98789.0,98788.0,0.13291967]
[1735186179438,0.04942336,98789.0,98788.0,0.13393186]
[1735186179661,0.04942336,98789.0,98788.0,0.13291967]
[1735186182425,0.04942336,98789.0,98788.0,0.02893335]
[1735186186879,0.04942336,98789.0,98788.0,0.13291967]
[1735186187282,0.00032336,98789.0,98788.0,0.30693184]
[1735186187491,0.0001718,98801.0,98800.0,0.161943]
[1735186187751,0.0001718,98801.0,98800.0,0.26694133]
[1735186187949,0.0001718,98801.0,98800.0,0.27350318]
[1735186189341,0.0001718,98801.0,98800.0,0.28845741]
[1735186189701,0.0001718,98801.0,98800.0,0.29045741]
[1735186195528,0.0001718,98801.0,98800.0,0.31345741]
[1735186196459,0.0001718,98801.0,98800.0,0.31145741]
[1735186196692,0.0001718,98801.0,98800.0,0.30645741]
[1735186196870,0.0001718,98801.0,98800.0,0.31445741]
[1735186201419,0.0001718,98801.0,98800.0,0.29145741]
[1735186201828,0.0813718,98801.0,98800.0,0.02552809]
[1735186204417,0.1283718,98801.0,98800.0,0.02552809]
[1735186204628,0.1283718,98801.0,98800.0,0.01795423]
[1735186206156,0.12938555,98801.0,98800.0,0.008]
[1735186206340,0.12938555,98801.0,98789.0,8.58e-05]
[1735186206341,0.290159,98790.0,98789.0,8.58e-05]
[1735186206773,0.290159,98790.0,98789.0,0.006478]
[1735186206985,0.290159,98790.0,98789.0,8.58e-05]
[1735186207395,0.161966,98786.0,98784.0,0.03939444]
[1735186207601,0.12891375,98785.0,98784.0,0.03939444]
[1735186208148,0.0792,98783.0,98781.0,0.13429332]
[1735186208362,0.08021375,98783.0,98768.0,0.00976483]
[1735186208569,0.241176,98780.0,98779.0,5.196e-05]
[1735186209806,0.389876,98780.0,98779.0,5.196e-05]
[1735186210002,0.389876,98780.0,98749.0,0.13429332]
[1735186210003,0.161992,98770.0,98749.0,0.13530586]
[1735186210218,0.161992,98770.0,98745.0,0.162032]
[1735186210219,0.29090575,98770.0,98745.0,0.162032]
[1735186210421,0.289892,98770.0,98746.0,0.00101256]
[1735186210857,0.289892,98770.0,98764.0,0.01008526]
[1735186211293,0.292892,98770.0,98764.0,0.01008526]
[1735186212542,0.290892,98770.0,98764.0,0.01008526]
[1735186213036,0.291892,98770.0,98764.0,0.01008526]
[1735186214668,0.291892,98770.0,98746.0,0.00101256]
[1735186215439,0.291892,98770.0,98759.0,0.00981274]
[1735186217091,0.1299,98770.0,98746.0,0.00101256]
[1735186217303,0.162008,98760.0,98726.0,0.02]
[1735186217524,0.0792,98741.0,98732.0,0.00987752]
[1735186217742,0.32509575,98740.0,98726.0,0.00052033]
[1735186218093,0.162055,98732.0,98726.0,0.00052033]
[1735186218314,0.0487,98731.0,98726.0,0.01068135]
[1735186218522,0.162058,98730.0,98726.0,0.00052033]
[1735186219486,0.162058,98730.0,98726.0,0.00152033]
[1735186219690,0.0792,98730.0,98726.0,0.00152033]
[1735186219890,0.0792,98730.0,98726.0,0.00052033]
[1735186220101,0.162059,98729.0,98726.0,0.00152033]
[1735186220535,0.162063,98727.0,98726.0,0.00152033]
[1735186221052,0.162063,98727.0,98726.0,0.00052033]
[1735186221259,0.16307675,98727.0,98726.0,0.00352033]
[1735186221465,0.16307675,98727.0,98726.0,0.00452033]
[1735186221889,0.0792,98740.0,98726.0,0.00452033]
[1735186222136,0.0792,98749.0,98746.0,0.16203]
[1735186222348,0.0792,98749.0,98745.0,0.162032]
[1735186222572,0.0487,98756.0,98747.0,0.00697179]
[1735186222778,0.0792,98760.0,98747.0,0.11197069]
[1735186222987,0.0792,98760.0,98748.0,0.00101257]
[1735186223193,0.0792,98760.0,98748.0,0.00798219]
[1735186223395,0.0792,98760.0,98749.0,0.162026]
[1735186223699,0.0792,98760.0,98750.0,0.00696528]
[1735186223904,0.0802,98760.0,98748.0,0.00101257]
[1735186224080,0.0792,98760.0,98748.0,0.00101257]
[1735186224292,0.0792,98760.0,98749.0,0.00696745]
[1735186224843,0.0802,98760.0,98749.0,0.00696745]
[1735186225650,0.0802,98760.0,98750.0,0.162025]
[1735186225901,0.0802,98760.0,98750.0,0.16899028]
[1735186226111,0.0792,98760.0,98750.0,0.00696528]
[1735186226351,0.0792,98760.0,98748.0,0.01114852]
[1735186226564,0.0812,98760.0,98751.0,0.00696312]
[1735186226781,0.0802,98760.0,98749.0,0.00696745]
[1735186226989,0.16302375,98759.0,98749.0,0.00696745]
[1735186227403,0.16302375,98759.0,98748.0,0.01013595]
[1735186227619,0.00101375,98759.0,98748.0,0.01013595]
[1735186227822,0.00101375,98759.0,98742.0,0.16304963]
[1735186228027,0.162012,98758.0,98749.0,0.00696745]
[1735186228239,0.162015,98756.0,98749.0,0.00696745]
[1735186228494,0.00101375,98755.0,98750.0,8.58e-05]
[1735186228885,0.00101375,98757.0,98750.0,8.58e-05]
[1735186229099,0.00101375,98756.0,98750.0,8.58e-05]
[1735186230052,0.00101375,98759.0,98750.0,8.58e-05]
[1735186230276,0.00101375,98758.0,98750.0,8.58e-05]
[1735186230681,0.00101375,98758.0,98750.0,0.0010858]
[1735186230881,0.00101375,98758.0,98750.0,8.58e-05]
[1735186231091,0.162013,98757.0,98750.0,8.58e-05]
[1735186231293,0.00101375,98756.0,98750.0,8.58e-05]
[1735186232480,0.00101375,98759.0,98750.0,8.58e-05]
[1735186232707,0.162022,98752.0,98750.0,8.58e-05]
[1735186232971,0.00101375,98751.0,98750.0,8.58e-05]
[1735186233916,0.00101375,98751.0,98750.0,0.0010858]
[1735186234123,0.12631375,98751.0,98750.0,0.0010858]
[1735186234324,0.12631375,98751.0,98750.0,0.0040858]
[1735186236181,0.12631375,98751.0,98750.0,8.58e-05]
[1735186236412,0.12831375,98751.0,98750.0,8.58e-05]
[1735186236665,0.13131375,98751.0,98750.0,8.58e-05]
[1735186237000,0.12931375,98751.0,98750.0,8.58e-05]
[1735186237417,0.13131375,98751.0,98750.0,8.58e-05]
[1735186237947,0.08211375,98751.0,98750.0,8.58e-05]
[1735186238144,0.005,98751.0,98750.0,8.58e-05]
[1735186238507,0.005,98751.0,98750.0,0.00317783]
[1735186238709,0.00101375,98761.0,98750.0,0.00317783]
[1735186238908,0.00101375,98761.0,98750.0,8.58e-05]
[1735186239128,0.005,98751.0,98750.0,8.58e-05]
[1735186239714,0.003,98751.0,98750.0,0.0030858]
[1735186240567,0.003,98751.0,98750.0,0.01331301]
[1735186241430,0.003,98751.0,98750.0,0.11831187]
[1735186241820,0.003,98751.0,98750.0,0.11931187]
[1735186245165,0.003,98751.0,98750.0,0.11829933]
[1735186246966,0.003,98751.0,98750.0,0.1223839]
[1735186247862,0.0001716,98765.0,98751.0,0.162023]
[1735186248071,0.0001716,98765.0,98756.0,0.173]
[1735186248279,0.0001716,98765.0,98764.0,0.185002]
[1735186248490,0.0001716,98765.0,98764.0,0.28898832]
[1735186248963,0.0001716,98765.0,98764.0,0.29173906]
[1735186249415,0.0001716,98765.0,98764.0,0.29473906]
[1735186249619,0.0001716,98765.0,98764.0,0.31537951]
[1735186249799,0.0001716,98765.0,98764.0,0.32437951]
[1735186250310,0.0001716,98765.0,98764.0,0.31537951]
[1735186251059,0.0001716,98765.0,98764.0,0.31237951]
[1735186251315,0.0001716,98765.0,98764.0,0.32137951]
[1735186251639,0.0001716,98765.0,98764.0,0.32537951]
[1735186251792,0.0001716,98765.0,98764.0,0.32137951]
[1735186252228,0.0001716,98765.0,98764.0,0.32537951]
[1735186252384,0.0001716,98765.0,98764.0,0.12004728]
[1735186252793,0.0001716,98765.0,98764.0,0.13116071]
[1735186261905,0.0001716,98765.0,98764.0,0.30416071]
[1735186262109,0.0489,98792.0,98777.0,0.10646678]
[1735186262319,0.0489,98792.0,98778.0,0.26697751]
[1735186262527,0.0489,98792.0,98778.0,0.27001191]
[1735186262733,0.00101375,98791.0,98778.0,0.0030344]
[1735186262948,0.0779,98790.0,98770.0,0.00101232]
[1735186263171,0.00101375,98789.0,98779.0,0.00349415]
[1735186263380,0.00101375,98789.0,98772.0,0.161989]
[1735186263557,0.00101375,98789.0,98773.0,0.10398632]
[1735186263801,0.00101375,98789.0,98773.0,0.00349814]
[1735186263978,0.0779,98788.0,98773.0,0.00349814]
[1735186264260,0.16297775,98787.0,98778.0,0.002]
[1735186264472,0.00101375,98787.0,98778.0,0.002]
[1735186264897,0.0779,98786.0,98778.0,0.002]
[1735186265108,0.161975,98781.0,98764.0,8.58e-05]
[1735186265322,0.161975,98781.0,98779.0,0.00349415]
[1735186265323,0.07891375,98780.0,98779.0,0.00349415]
[1735186265535,0.07891375,98780.0,98778.0,0.001]
[1735186266123,0.07891375,98780.0,98765.0,0.10398632]
[1735186266336,0.07891375,98780.0,98779.0,0.00349415]
[1735186266585,0.07891375,98780.0,98765.0,0.10398632]
[1735186266962,0.07891375,98780.0,98778.0,0.004]
[1735186267253,0.07891375,98780.0,98766.0,0.0035028]
[1735186267477,0.07891375,98780.0,98779.0,0.004]
[1735186267895,0.07891375,98780.0,98778.0,0.001]
[1735186268081,0.07891375,98780.0,98778.0,0.005]
[1735186268289,0.07891375,98780.0,98767.0,0.10398632]
[1735186268480,0.07891375,98780.0,98779.0,0.00349415]
[1735186268699,0.07891375,98780.0,98779.0,0.005]
[1735186269075,0.07891375,98780.0,98779.0,0.004]
[1735186270047,0.07891375,98780.0,98767.0,0.003]
[1735186270265,0.0455,98774.0,98767.0,0.003]
[1735186270469,0.00101375,98773.0,98767.0,0.003]
[1735186270687,0.00101375,98773.0,98764.0,0.01006672]
[1735186270887,0.0455,98774.0,98764.0,0.01006672]